[Event "44th Chess Olympiad Open 2022"]
[Site "Chennai"]
[Date "2022.07.30"]
[Round "2.64"]
[White "Gerena Rivas, Eliam"]
[Black "Tan, Santiago Jr"]
[Result "1-0"]
[WhiteElo "2102"]
[BlackElo "1872"]
[Annotator "NA RC"]
[PlyCount "83"]
[EventDate "2022.??.??"]
[TimeControl "60"]

1. e4 {[%emt 0:00:04]} c6 {[%emt 0:00:11]} 2. d4 {[%emt 0:00:21]} d5 {[%emt 0:
00:00]} 3. exd5 {[%emt 0:00:17]} cxd5 {[%emt 0:00:08]} 4. Bd3 {[%emt 0:00:12]}
Nc6 {[%emt 0:00:12]} 5. c3 {[%emt 0:00:13]} Nf6 {[%emt 0:00:20]} 6. Bf4 {
[%emt 0:00:17]} e6 {[%emt 0:01:38]} 7. Nd2 {[%emt 0:01:17]} Bd6 {[%emt 0:00:22]
} 8. Bxd6 {[%emt 0:00:42]} Qxd6 {[%emt 0:00:09]} 9. Ngf3 {[%emt 0:00:14]} h6 {
[%emt 0:00:26]} 10. Qe2 {[%emt 0:00:51]} a6 {[%emt 0:01:13]} 11. a4 {[%emt 0:
00:00]} O-O {[%emt 0:02:02]} 12. O-O {[%emt 0:00:18]} Re8 {[%emt 0:00:22]} 13.
Ne5 {[%emt 0:02:00]} Bd7 {[%emt 0:00:31]} 14. f4 {[%emt 0:01:04]} Ne7 {[%emt 0:
00:00]} 15. g4 {[%emt 0:02:23]} Nh7 {[%emt 0:00:43]} 16. Bxh7+ {[%emt 0:01:15]}
Kxh7 {[%emt 0:00:09]} 17. Nxf7 {[%emt 0:00:21]} Qb6 {[%emt 0:00:14]} 18. Ne5 {
[%emt 0:00:40]} Rad8 {[%emt 0:01:23]} 19. Qd3+ {[%emt 0:02:52]} Kg8 {[%emt 0:
00:00]} 20. b4 {[%emt 0:01:46]} Rf8 {[%emt 0:00:52]} 21. Nb3 {[%emt 0:02:26]}
Qd6 {[%emt 0:00:40]} 22. Nc5 {[%emt 0:00:39]} Bc8 {[%emt 0:00:14]} 23. a5 {
[%emt 0:01:06]} Rf6 {[%emt 0:00:31]} 24. Rf3 {[%emt 0:09:35]} Rdf8 {[%emt 0:00:
00]} 25. Raf1 {[%emt 0:00:55]} Qd8 {[%emt 0:06:39]} 26. Qe3 {[%emt 0:04:27]}
Qe8 {[%emt 0:05:29]} 27. R1f2 {[%emt 0:05:51]} Ng6 {[%emt 0:05:19]} 28. Ncd3 {
[%emt 0:02:25]} Ne7 {[%emt 0:06:41]} 29. h4 {[%emt 0:02:42]} h5 {[%emt 0:03:42]
} 30. g5 {[%emt 0:02:15]} Nf5 {[%emt 0:01:01]} 31. Qe2 {[%emt 0:01:04]} R6f7 {
[%emt 0:03:49]} 32. Ng6 {[%emt 0:03:07]} Rf6 {[%emt 0:05:35]} 33. gxf6 {
[%emt 0:07:01]} Qxg6+ {[%emt 0:00:16]} 34. Rg2 {[%emt 0:00:17]} Qxf6 {[%emt 0:
00:00]} 35. Rg5 {[%emt 0:00:37]} Bd7 {[%emt 0:02:26]} 36. Nc5 {[%emt 0:02:00]}
Bc8 {[%emt 0:00:42]} 37. Rf2 {[%emt 0:04:24]} Nxh4 {[%emt 0:02:40]} 38. Qxh5 {
[%emt 0:01:46]} Nf5 {[%emt 0:01:24]} 39. Rh2 {[%emt 0:04:17]} Qe7 {[%emt 0:00:
00]} 40. Qh7+ {[%emt 0:01:09]} Kf7 {[%emt 0:00:26]} 41. Qg6+ {[%emt 0:30:08]}
Kg8 {[%emt 0:30:21]} 42. Rgh5 {[%emt 0:00:14]} 1-0

[Event "44th Chess Olympiad Open 2022"]
[Site "Chennai"]
[Date "2022.07.30"]
[Round "2.64"]
[White "Zilleruelo Irizarry, Diego"]
[Black "Salvadora, Angelo"]
[Result "1-0"]
[WhiteElo "2081"]
[BlackElo "1711"]
[Annotator "NA RC"]
[PlyCount "55"]
[EventDate "2022.??.??"]
[TimeControl "60"]

1. e4 {[%emt 0:00:03]} d6 {[%emt 0:00:07]} 2. d4 {[%emt 0:00:07]} Nf6 {[%emt 0:
00:00]} 3. Nc3 {[%emt 0:00:07]} Bg4 {[%emt 0:04:03]} 4. Be2 {[%emt 0:02:08]}
Bxe2 {[%emt 0:00:29]} 5. Qxe2 {[%emt 0:00:08]} Nc6 {[%emt 0:01:06]} 6. Be3 {
[%emt 0:01:29]} Qd7 {[%emt 0:02:21]} 7. Nf3 {[%emt 0:01:25]} a6 {[%emt 0:07:27]
} 8. d5 {[%emt 0:06:35]} Na7 {[%emt 0:04:56]} 9. a4 {[%emt 0:02:41]} Qg4 {
[%emt 0:00:25]} 10. h3 {[%emt 0:02:03]} Qxg2 {[%emt 0:02:09]} 11. O-O-O {
[%emt 0:00:25]} Qg6 {[%emt 0:01:54]} 12. Rdg1 {[%emt 0:00:54]} Qh5 {[%emt 0:00:
00]} 13. Rg5 {[%emt 0:02:00]} Qh6 {[%emt 0:00:09]} 14. Rf5 {[%emt 0:06:06]} g5
{[%emt 0:15:53]} 15. Bxg5 {[%emt 0:00:45]} Qg6 {[%emt 0:05:42]} 16. Bxf6 {
[%emt 0:04:42]} exf6 {[%emt 0:00:52]} 17. Kb1 {[%emt 0:01:06]} h5 {[%emt 0:00:
00]} 18. Rg1 {[%emt 0:00:51]} Qh6 {[%emt 0:04:04]} 19. Nh4 {[%emt 0:08:21]}
O-O-O {[%emt 0:01:59]} 20. Rf3 {[%emt 0:01:04]} Kb8 {[%emt 0:05:00]} 21. Nf5 {
[%emt 0:02:47]} Qh7 {[%emt 0:00:23]} 22. b4 {[%emt 0:00:07]} c6 {[%emt 0:01:24]
} 23. b5 {[%emt 0:02:28]} cxb5 {[%emt 0:03:20]} 24. axb5 {[%emt 0:00:08]} axb5
{[%emt 0:02:37]} 25. Nxb5 {[%emt 0:00:03]} Nxb5 {[%emt 0:04:45]} 26. Qxb5 {
[%emt 0:00:02]} Rg8 {[%emt 0:00:16]} 27. Rxg8 {[%emt 0:00:24]} Qxg8 {[%emt 0:
00:00]} 28. Rb3 {[%emt 0:00:27]} 1-0

[Event "44th Chess Olympiad Open 2022"]
[Site "Chennai"]
[Date "2022.07.30"]
[Round "2.64"]
[White "Montel Jr, Cyril Tomas"]
[Black "Fellman, Mike"]
[Result "0-1"]
[WhiteElo "1827"]
[BlackElo "2107"]
[Annotator "NA RC"]
[PlyCount "66"]
[EventDate "2022.??.??"]
[TimeControl "60"]

1. c4 {[%emt 0:00:05]} Nf6 {[%emt 0:00:09]} 2. g3 {[%emt 0:00:20]} c5 {[%emt 0:
00:00]} 3. Bg2 {[%emt 0:00:19]} d5 {[%emt 0:00:07]} 4. cxd5 {[%emt 0:00:32]}
Nxd5 {[%emt 0:00:03]} 5. Nc3 {[%emt 0:00:18]} Nc7 {[%emt 0:00:09]} 6. Nf3 {
[%emt 0:00:40]} Nc6 {[%emt 0:00:09]} 7. O-O {[%emt 0:00:35]} e5 {[%emt 0:00:14]
} 8. d3 {[%emt 0:01:31]} Be7 {[%emt 0:00:12]} 9. b3 {[%emt 0:01:21]} Be6 {
[%emt 0:00:49]} 10. Bb2 {[%emt 0:00:31]} f6 {[%emt 0:02:36]} 11. h3 {[%emt 0:
00:00]} Qd7 {[%emt 0:00:39]} 12. Kh2 {[%emt 0:00:12]} O-O {[%emt 0:01:20]} 13.
Rc1 {[%emt 0:00:14]} Rac8 {[%emt 0:01:37]} 14. Nd2 {[%emt 0:07:06]} Rfd8 {
[%emt 0:03:58]} 15. f4 {[%emt 0:04:26]} exf4 {[%emt 0:03:37]} 16. Rxf4 {
[%emt 0:00:18]} f5 {[%emt 0:05:59]} 17. Nc4 {[%emt 0:23:03]} Bg5 {[%emt 0:00:
00]} 18. Rf2 {[%emt 0:05:12]} Bxc1 {[%emt 0:01:15]} 19. Qxc1 {[%emt 0:00:12]}
h6 {[%emt 0:03:15]} 20. e4 {[%emt 0:03:36]} Rf8 {[%emt 0:05:08]} 21. e5 {
[%emt 0:06:40]} b5 {[%emt 0:07:48]} 22. Nd6 {[%emt 0:00:29]} Nxe5 {[%emt 0:00:
00]} 23. Nxc8 {[%emt 0:05:56]} Nxd3 {[%emt 0:08:13]} 24. Rd2 {[%emt 0:01:14]}
Rxc8 {[%emt 0:05:31]} 25. Qf1 {[%emt 0:03:06]} c4 {[%emt 0:02:12]} 26. Ne2 {
[%emt 0:02:33]} Nd5 {[%emt 0:03:24]} 27. Nf4 {[%emt 0:06:06]} N3xf4 {[%emt 0:
00:00]} 28. gxf4 {[%emt 0:01:16]} c3 {[%emt 0:01:28]} 29. Bxc3 {[%emt 0:04:59]}
Rxc3 {[%emt 0:00:15]} 30. Qd1 {[%emt 0:00:12]} Qc7 {[%emt 0:01:22]} 31. Bxd5 {
[%emt 0:04:01]} Qxf4+ {[%emt 0:00:34]} 32. Kg1 {[%emt 0:01:36]} Bxd5 {[%emt 0:
00:00]} 33. Rxd5 {[%emt 0:02:38]} Rg3+ {[%emt 0:00:34]} 0-1

[Event "44th Chess Olympiad Open 2022"]
[Site "Chennai"]
[Date "2022.07.30"]
[Round "2.64"]
[White "Cabunagan, Tito"]
[Black "Pinales Roussel, Gabriel"]
[Result "0-1"]
[WhiteElo "1706"]
[BlackElo "1973"]
[Annotator "NA RC"]
[PlyCount "70"]
[EventDate "2022.??.??"]
[TimeControl "60"]

1. e4 {[%emt 0:00:04]} g6 {[%emt 0:00:08]} 2. f4 {[%emt 0:00:04]} d5 {[%emt 0:
00:00]} 3. exd5 {[%emt 0:00:17]} Qxd5 {[%emt 0:00:23]} 4. Nf3 {[%emt 0:00:05]}
Qe4+ {[%emt 0:07:21]} 5. Be2 {[%emt 0:00:02]} Qxf4 {[%emt 0:01:45]} 6. d4 {
[%emt 0:00:24]} Qd6 {[%emt 0:00:27]} 7. O-O {[%emt 0:00:29]} Nf6 {[%emt 0:00:
00]} 8. c4 {[%emt 0:00:29]} Bg7 {[%emt 0:01:13]} 9. Nc3 {[%emt 0:00:17]} O-O {
[%emt 0:01:46]} 10. c5 {[%emt 0:00:34]} Qd8 {[%emt 0:01:33]} 11. h3 {[%emt 0:
00:00]} Nd5 {[%emt 0:03:16]} 12. Nxd5 {[%emt 0:00:05]} Qxd5 {[%emt 0:00:12]}
13. Be3 {[%emt 0:01:00]} Nc6 {[%emt 0:02:28]} 14. b3 {[%emt 0:00:15]} e5 {
[%emt 0:03:18]} 15. Ng5 {[%emt 0:00:40]} exd4 {[%emt 0:08:06]} 16. Bc4 {
[%emt 0:00:31]} Qe5 {[%emt 0:03:38]} 17. Bf4 {[%emt 0:00:22]} Qe7 {[%emt 0:00:
00]} 18. Qf3 {[%emt 0:02:08]} Nd8 {[%emt 0:02:16]} 19. Rae1 {[%emt 0:00:41]}
Be6 {[%emt 0:03:03]} 20. Qg3 {[%emt 0:02:44]} Qxc5 {[%emt 0:08:29]} 21. Bxe6 {
[%emt 0:02:56]} Nxe6 {[%emt 0:02:22]} 22. Nxe6 {[%emt 0:00:27]} fxe6 {[%emt 0:
00:00]} 23. Rc1 {[%emt 0:00:44]} Qd5 {[%emt 0:04:04]} 24. Rxc7 {[%emt 0:04:08]}
Rf5 {[%emt 0:01:13]} 25. Rfc1 {[%emt 0:00:41]} e5 {[%emt 0:02:45]} 26. Bd2 {
[%emt 0:01:43]} Rf7 {[%emt 0:04:16]} 27. R7c5 {[%emt 0:00:18]} Qe6 {[%emt 0:00:
00]} 28. Qh4 {[%emt 0:01:20]} Re8 {[%emt 0:02:12]} 29. Qe4 {[%emt 0:00:10]} Qf5
{[%emt 0:01:40]} 30. Qe2 {[%emt 0:00:32]} Ref8 {[%emt 0:03:21]} 31. Bb4 {
[%emt 0:00:08]} Rd8 {[%emt 0:01:18]} 32. Rc7 {[%emt 0:00:13]} d3 {[%emt 0:00:
00]} 33. Rxf7 {[%emt 0:02:00]} dxe2 {[%emt 0:00:31]} 34. Rxf5 {[%emt 0:00:11]}
Rd1+ {[%emt 0:03:06]} 35. Rf1 {[%emt 0:00:09]} exf1=Q+ {[%emt 0:00:08]} 0-1

[Event "44th Chess Olympiad Open 2022"]
[Site "Chennai"]
[Date "2022.07.30"]
[Round "2.65"]
[White "De Silva, L M S T.."]
[Black "Albury, Noah"]
[Result "1-0"]
[WhiteElo "2212"]
[BlackElo "1324"]
[Annotator "RC"]
[PlyCount "61"]
[EventDate "2022.??.??"]
[TimeControl "60"]

1. e4 {[%emt 0:00:06]} e5 {[%emt 0:00:10]} 2. Nc3 {[%emt 0:00:41]} Nf6 {
[%emt 0:00:26]} 3. Bc4 {[%emt 0:00:51]} Bc5 {[%emt 0:00:45]} 4. d3 {[%emt 0:00:
00]} O-O {[%emt 0:01:13]} 5. f4 {[%emt 0:06:34]} d5 {[%emt 0:13:49]} 6. Nxd5 {
[%emt 0:17:35]} Ng4 {[%emt 0:14:21]} 7. f5 {[%emt 0:02:49]} Qh4+ {[%emt 0:00:
00]} 8. g3 {[%emt 0:02:39]} Bf2+ {[%emt 0:02:28]} 9. Kf1 {[%emt 0:06:09]} Qh5 {
[%emt 0:05:52]} 10. Qf3 {[%emt 0:04:21]} Bxg1 {[%emt 0:12:40]} 11. Kxg1 {
[%emt 0:00:34]} Nd7 {[%emt 0:00:58]} 12. Nxc7 {[%emt 0:04:23]} Rb8 {[%emt 0:00:
00]} 13. h3 {[%emt 0:00:33]} Ngf6 {[%emt 0:01:17]} 14. Qxh5 {[%emt 0:01:55]}
Nxh5 {[%emt 0:00:05]} 15. Kg2 {[%emt 0:00:46]} Nb6 {[%emt 0:01:46]} 16. Bb3 {
[%emt 0:01:33]} Bd7 {[%emt 0:00:51]} 17. Be3 {[%emt 0:01:39]} Na4 {[%emt 0:00:
00]} 18. Bxa7 {[%emt 0:05:26]} Rbc8 {[%emt 0:00:28]} 19. Nd5 {[%emt 0:00:44]}
Ra8 {[%emt 0:05:31]} 20. Be3 {[%emt 0:01:19]} g6 {[%emt 0:02:46]} 21. g4 {
[%emt 0:00:25]} Nf4+ {[%emt 0:01:04]} 22. Bxf4 {[%emt 0:00:07]} exf4 {[%emt 0:
00:00]} 23. Nf6+ {[%emt 0:00:07]} Kg7 {[%emt 0:01:16]} 24. Nxd7 {[%emt 0:00:08]
} Rfd8 {[%emt 0:00:46]} 25. f6+ {[%emt 0:00:17]} Kg8 {[%emt 0:00:42]} 26. Ne5 {
[%emt 0:00:08]} Nc5 {[%emt 0:01:37]} 27. Bxf7+ {[%emt 0:01:06]} Kf8 {[%emt 0:
00:00]} 28. Bd5 {[%emt 0:00:13]} Nd7 {[%emt 0:00:58]} 29. Nxd7+ {[%emt 0:00:09]
} Rxd7 {[%emt 0:00:09]} 30. c4 {[%emt 0:00:10]} Ra5 {[%emt 0:01:34]} 31. e5 {
[%emt 0:00:11]} 1-0

[Event "44th Chess Olympiad Open 2022"]
[Site "Chennai"]
[Date "2022.07.30"]
[Round "2.65"]
[White "Alahakoon, Isuru"]
[Black "Knowles, Kendrick"]
[Result "1/2-1/2"]
[WhiteElo "2000"]
[BlackElo "1907"]
[Annotator "NA"]
[PlyCount "86"]
[EventDate "2022.??.??"]
[TimeControl "60"]

1. d4 {[%emt 0:00:13]} Nf6 {[%emt 0:00:23]} 2. Bf4 {[%emt 0:00:15]} d5 {
[%emt 0:01:25]} 3. e3 {[%emt 0:00:24]} c5 {[%emt 0:00:13]} 4. c3 {[%emt 0:00:
00]} Nc6 {[%emt 0:00:21]} 5. Nd2 {[%emt 0:00:10]} a6 {[%emt 0:02:04]} 6. Ngf3 {
[%emt 0:01:29]} cxd4 {[%emt 0:02:07]} 7. exd4 {[%emt 0:00:11]} Bg4 {[%emt 0:00:
00]} 8. Bd3 {[%emt 0:03:10]} e6 {[%emt 0:00:06]} 9. O-O {[%emt 0:03:30]} Bd6 {
[%emt 0:00:12]} 10. Bxd6 {[%emt 0:00:06]} Qxd6 {[%emt 0:00:05]} 11. Re1 {
[%emt 0:00:10]} O-O {[%emt 0:00:10]} 12. Qc2 {[%emt 0:03:06]} Bxf3 {[%emt 0:00:
00]} 13. Nxf3 {[%emt 0:04:50]} b5 {[%emt 0:01:09]} 14. Ne5 {[%emt 0:23:28]}
Rfc8 {[%emt 0:06:25]} 15. Qe2 {[%emt 0:10:54]} Nd8 {[%emt 0:04:43]} 16. a3 {
[%emt 0:05:02]} Ra7 {[%emt 0:04:39]} 17. Rad1 {[%emt 0:04:11]} Rac7 {[%emt 0:
00:00]} 18. Bb1 {[%emt 0:05:33]} g6 {[%emt 0:05:34]} 19. h4 {[%emt 0:08:17]}
Kg7 {[%emt 0:03:58]} 20. Rd3 {[%emt 0:03:33]} a5 {[%emt 0:00:39]} 21. h5 {
[%emt 0:08:46]} Nxh5 {[%emt 0:01:05]} 22. Qd2 {[%emt 0:02:55]} b4 {[%emt 0:00:
00]} 23. axb4 {[%emt 0:00:35]} axb4 {[%emt 0:00:04]} 24. Rh3 {[%emt 0:00:25]}
bxc3 {[%emt 0:00:37]} 25. bxc3 {[%emt 0:00:05]} f5 {[%emt 0:03:31]} 26. g4 {
[%emt 0:04:47]} Nf6 {[%emt 0:02:29]} 27. gxf5 {[%emt 0:03:02]} exf5 {[%emt 0:
00:00]} 28. Bxf5 {[%emt 0:00:26]} gxf5 {[%emt 0:08:32]} 29. Qh6+ {[%emt 0:00:
00]} Kh8 {[%emt 0:01:54]} 30. Rg3 {[%emt 0:02:01]} Ne4 {[%emt 0:04:43]} 31.
Ng6+ {[%emt 0:00:45]} Kg8 {[%emt 0:00:53]} 32. Rxe4 {[%emt 0:00:30]} Qxg3+ {
[%emt 0:00:27]} 33. fxg3 {[%emt 0:00:16]} Nf7 {[%emt 0:00:14]} 34. Qh4 {
[%emt 0:00:45]} hxg6 {[%emt 0:01:33]} 35. Re6 {[%emt 0:00:27]} Kg7 {[%emt 0:00:
00]} 36. Qf6+ {[%emt 0:00:13]} Kf8 {[%emt 0:01:14]} 37. Qxg6 {[%emt 0:00:40]}
Rxc3 {[%emt 0:00:22]} 38. Rf6 {[%emt 0:00:34]} Rc1+ {[%emt 0:00:17]} 39. Kg2 {
[%emt 0:00:37]} R8c2+ {[%emt 0:00:14]} 40. Kf3 {[%emt 0:00:29]} Rc3+ {[%emt 0:
00:00]} 41. Ke2 {[%emt 0:09:17]} R3c2+ {[%emt 0:00:35]} 42. Kd3 {[%emt 0:00:15]
} Rc3+ {[%emt 0:00:06]} 43. Kd2 {[%emt 0:00:07]} R3c2+ {[%emt 0:54:31]} 1/2-1/2

[Event "44th Chess Olympiad Open 2022"]
[Site "Chennai"]
[Date "2022.07.30"]
[Round "2.65"]
[White "Karelina, Polina"]
[Black "Liyanage, Ranindu Dilshan"]
[Result "0-1"]
[WhiteElo "1835"]
[BlackElo "2286"]
[Annotator "RC"]
[PlyCount "54"]
[EventDate "2022.??.??"]
[TimeControl "60"]

1. e4 {[%emt 0:00:09]} e6 {[%emt 0:00:23]} 2. d3 {[%emt 0:00:38]} d5 {[%emt 0:
00:00]} 3. Nd2 {[%emt 0:00:26]} c5 {[%emt 0:00:17]} 4. g3 {[%emt 0:02:17]} Nc6
{[%emt 0:00:35]} 5. Bg2 {[%emt 0:00:16]} g6 {[%emt 0:00:27]} 6. f4 {[%emt 0:00:
00]} Bg7 {[%emt 0:01:14]} 7. c3 {[%emt 0:01:17]} Nge7 {[%emt 0:03:03]} 8. Ngf3
{[%emt 0:03:05]} b6 {[%emt 0:02:21]} 9. O-O {[%emt 0:02:23]} Ba6 {[%emt 0:00:
00]} 10. Ne1 {[%emt 0:07:14]} Qd7 {[%emt 0:11:32]} 11. Rf2 {[%emt 0:05:54]} O-O
{[%emt 0:03:23]} 12. Qa4 {[%emt 0:10:01]} Bb7 {[%emt 0:01:40]} 13. Ndf3 {
[%emt 0:01:20]} a5 {[%emt 0:02:19]} 14. c4 {[%emt 0:04:17]} Rad8 {[%emt 0:00:
00]} 15. Be3 {[%emt 0:05:02]} dxe4 {[%emt 0:13:45]} 16. dxe4 {[%emt 0:00:20]}
e5 {[%emt 0:00:32]} 17. Rd2 {[%emt 0:06:58]} Qc7 {[%emt 0:00:37]} 18. Rad1 {
[%emt 0:02:43]} Nd4 {[%emt 0:08:57]} 19. Nxe5 {[%emt 0:04:21]} Bxe5 {[%emt 0:
00:00]} 20. fxe5 {[%emt 0:00:05]} Nec6 {[%emt 0:00:15]} 21. Bf4 {[%emt 0:10:50]
} Nxe5 {[%emt 0:07:40]} 22. Nc2 {[%emt 0:05:53]} Bc6 {[%emt 0:01:27]} 23. Bxe5
{[%emt 0:11:32]} Qxe5 {[%emt 0:00:34]} 24. Qa3 {[%emt 0:00:47]} Nxc2 {[%emt 0:
00:00]} 25. Qb3 {[%emt 0:00:38]} Rd6 {[%emt 0:00:14]} 26. Rd3 Rxd3 {[%emt 0:00:
00]} 27. Rd2 {[%emt 0:00:45]} Rxd2 {[%emt 0:00:07]} 0-1

[Event "44th Chess Olympiad Open 2022"]
[Site "Chennai"]
[Date "2022.07.30"]
[Round "2.65"]
[White "Moncur, Cecil"]
[Black "Kiriella, K G T S D.."]
[Result "0-1"]
[WhiteElo "1815"]
[BlackElo "1781"]
[Annotator "NA"]
[PlyCount "31"]
[EventDate "2022.??.??"]
[TimeControl "60"]

1. e4 {[%emt 0:00:12]} e5 {[%emt 0:00:37]} 2. Bc4 {[%emt 0:00:18]} Nf6 {
[%emt 0:00:17]} 3. d3 {[%emt 0:00:03]} c6 {[%emt 0:00:30]} 4. Bb3 {[%emt 0:00:
00]} d5 {[%emt 0:07:45]} 5. Nf3 {[%emt 0:00:00]} Bg4 {[%emt 0:07:30]} 6. exd5 {
[%emt 0:01:49]} Nxd5 {[%emt 0:01:53]} 7. O-O {[%emt 0:01:26]} Qf6 {[%emt 0:00:
00]} 8. Re1 {[%emt 0:00:30]} Be7 {[%emt 0:00:30]} 9. Nbd2 {[%emt 0:00:30]} Nd7
{[%emt 0:00:30]} 10. h3 {[%emt 0:00:30]} h5 {[%emt 0:00:30]} 11. Ne4 {[%emt 0:
00:00]} Qg6 {[%emt 0:00:30]} 12. Ng3 {[%emt 0:00:30]} Bxh3 {[%emt 0:00:30]} 13.
Nxe5 {[%emt 0:00:30]} Nxe5 {[%emt 0:00:30]} 14. Rxe5 {[%emt 0:00:30]} h4 {
[%emt 0:00:30]} 15. Bxd5 {[%emt 0:00:30]} hxg3 {[%emt 0:00:30]} 16. Bf3 {
[%emt 0:00:30]} 0-1

[Event "44th Chess Olympiad Open 2022"]
[Site "Chennai"]
[Date "2022.07.30"]
[Round "2.66"]
[White "Oatlhotse, Providence"]
[Black "Mlawa, Hemed"]
[Result "1-0"]
[WhiteElo "2204"]
[BlackElo "1896"]
[Annotator "RC"]
[PlyCount "53"]
[EventDate "2022.??.??"]
[TimeControl "60"]

1. Nf3 {[%emt 0:00:23]} d5 {[%emt 0:00:33]} 2. g3 {[%emt 0:00:09]} Bf5 {
[%emt 0:01:53]} 3. Bg2 {[%emt 0:00:15]} e6 {[%emt 0:01:00]} 4. c4 {[%emt 0:00:
00]} c6 {[%emt 0:00:09]} 5. Qb3 {[%emt 0:00:23]} Qb6 {[%emt 0:00:16]} 6. d3 {
[%emt 0:00:02]} Nd7 {[%emt 0:01:18]} 7. O-O {[%emt 0:00:13]} Ngf6 {[%emt 0:00:
00]} 8. Nc3 {[%emt 0:01:19]} h6 {[%emt 0:00:29]} 9. cxd5 {[%emt 0:06:49]} Qxb3
{[%emt 0:00:29]} 10. axb3 {[%emt 0:00:04]} exd5 {[%emt 0:00:07]} 11. e4 {
[%emt 0:00:20]} dxe4 {[%emt 0:06:43]} 12. dxe4 {[%emt 0:04:15]} Be6 {[%emt 0:
00:00]} 13. Nd4 {[%emt 0:03:01]} Nc5 {[%emt 0:05:44]} 14. e5 {[%emt 0:02:45]}
Nd5 {[%emt 0:13:50]} 15. Nxd5 {[%emt 0:00:31]} cxd5 {[%emt 0:00:27]} 16. Be3 {
[%emt 0:03:15]} a6 {[%emt 0:05:58]} 17. f4 {[%emt 0:01:56]} g6 {[%emt 0:01:11]}
18. Rfc1 {[%emt 0:01:12]} Nd3 {[%emt 0:28:10]} 19. Rc3 {[%emt 0:01:28]} Nb4 {
[%emt 0:02:47]} 20. Rc7 {[%emt 0:05:24]} b5 {[%emt 0:18:22]} 21. Nxb5 {[%emt 0:
00:00]} Rc8 {[%emt 0:06:01]} 22. Rxc8+ {[%emt 0:00:20]} Bxc8 {[%emt 0:00:09]}
23. Nc7+ Kd8 {[%emt 0:01:15]} 24. Nxd5 {[%emt 0:00:53]} Nc2 {[%emt 0:01:27]}
25. Bb6+ {[%emt 0:00:25]} Kd7 {[%emt 0:00:21]} 26. Rc1 {[%emt 0:00:37]} Nb4 {
[%emt 0:00:59]} 27. Nf6+ {[%emt 0:00:17]} 1-0

[Event "44th Chess Olympiad Open 2022"]
[Site "Chennai"]
[Date "2022.07.30"]
[Round "2.66"]
[White "Oratile, Kgotlane"]
[Black "Charles, Cleophas"]
[Result "1-0"]
[WhiteElo "2024"]
[BlackElo "1593"]
[Annotator "NA RC"]
[PlyCount "57"]
[EventDate "2022.??.??"]
[TimeControl "60"]

1. e4 {[%emt 0:00:11]} e5 {[%emt 0:00:21]} 2. Nf3 {[%emt 0:00:11]} Nc6 {
[%emt 0:00:15]} 3. d3 {[%emt 0:00:13]} Bc5 {[%emt 0:00:30]} 4. Nxe5 {[%emt 0:
00:00]} Bxf2+ {[%emt 0:01:18]} 5. Kxf2 {[%emt 0:00:08]} Nxe5 {[%emt 0:00:19]}
6. d4 {[%emt 0:01:07]} Qf6+ {[%emt 0:04:52]} 7. Kg1 {[%emt 0:00:13]} Ng4 {
[%emt 0:01:20]} 8. Qd2 {[%emt 0:00:07]} d6 {[%emt 0:11:11]} 9. h3 {[%emt 0:00:
00]} N4h6 {[%emt 0:03:24]} 10. Nc3 {[%emt 0:00:13]} Bd7 {[%emt 0:08:11]} 11.
Be2 {[%emt 0:01:36]} Ne7 {[%emt 0:04:57]} 12. Kh2 {[%emt 0:02:14]} O-O {
[%emt 0:06:33]} 13. Rf1 {[%emt 0:02:44]} Qg6 {[%emt 0:02:52]} 14. Rf3 {[%emt 0:
00:00]} Kh8 {[%emt 0:05:04]} 15. Qf4 {[%emt 0:05:19]} f6 {[%emt 0:07:28]} 16.
Qh4 {[%emt 0:03:00]} Neg8 {[%emt 0:08:57]} 17. Be3 {[%emt 0:04:30]} Qe8 {
[%emt 0:10:49]} 18. Raf1 {[%emt 0:00:36]} c5 {[%emt 0:01:24]} 19. Nd5 {[%emt 0:
00:00]} Rc8 {[%emt 0:03:18]} 20. Bxh6 {[%emt 0:11:41]} Nxh6 {[%emt 0:05:09]}
21. Nxf6 {[%emt 0:07:39]} gxf6 {[%emt 0:05:16]} 22. Qxh6 {[%emt 0:00:59]} cxd4
{[%emt 0:01:34]} 23. Bd3 {[%emt 0:00:50]} Qe5+ {[%emt 0:01:38]} 24. Kh1 {
[%emt 0:01:03]} f5 {[%emt 0:03:31]} 25. Qh4 {[%emt 0:05:05]} Rf6 {[%emt 0:00:
00]} 26. exf5 {[%emt 0:00:34]} Rg8 {[%emt 0:00:40]} 27. Re1 {[%emt 0:00:23]}
Qa5 {[%emt 0:00:43]} 28. Qxf6+ {[%emt 0:00:15]} Rg7 {[%emt 0:00:19]} 29. Re7 {
[%emt 0:00:11]} 1-0

[Event "44th Chess Olympiad Open 2022"]
[Site "Chennai"]
[Date "2022.07.30"]
[Round "2.66"]
[White "Njau, Albert"]
[Black "Rongwane, Gomolemo"]
[Result "0-1"]
[WhiteElo "1842"]
[BlackElo "2033"]
[Annotator "NA RC"]
[PlyCount "52"]
[EventDate "2022.??.??"]
[TimeControl "60"]

1. d4 {[%emt 0:00:16]} Nf6 {[%emt 0:01:10]} 2. Nf3 {[%emt 0:00:31]} e6 {
[%emt 0:00:45]} 3. g3 {[%emt 0:00:27]} b6 {[%emt 0:00:26]} 4. Bg2 {[%emt 0:00:
00]} Bb7 {[%emt 0:00:03]} 5. c4 {[%emt 0:00:37]} Be7 {[%emt 0:00:08]} 6. O-O {
[%emt 0:00:24]} O-O {[%emt 0:00:13]} 7. Nc3 {[%emt 0:00:33]} Ne4 {[%emt 0:00:
00]} 8. Qc2 {[%emt 0:01:37]} Nxc3 {[%emt 0:00:06]} 9. Qxc3 {[%emt 0:00:40]} f5
{[%emt 0:01:05]} 10. Rd1 {[%emt 0:01:50]} Bf6 {[%emt 0:04:38]} 11. b3 {[%emt 0:
00:00]} c5 {[%emt 0:05:29]} 12. e3 {[%emt 0:01:06]} Qe8 {[%emt 0:02:32]} 13.
Bb2 {[%emt 0:03:20]} Qh5 {[%emt 0:02:00]} 14. Ne1 {[%emt 0:03:25]} Bxg2 {
[%emt 0:01:55]} 15. Kxg2 {[%emt 0:02:32]} Nc6 {[%emt 0:07:09]} 16. Qd2 {
[%emt 0:11:32]} f4 {[%emt 0:03:43]} 17. exf4 {[%emt 0:02:33]} Nxd4 {[%emt 0:00:
00]} 18. Rab1 {[%emt 0:13:31]} d6 {[%emt 0:04:54]} 19. Qd3 {[%emt 0:04:11]}
Rae8 {[%emt 0:02:51]} 20. b4 {[%emt 0:07:45]} e5 {[%emt 0:02:21]} 21. fxe5 {
[%emt 0:07:54]} Bxe5 {[%emt 0:02:26]} 22. Rd2 {[%emt 0:04:24]} g5 {[%emt 0:00:
00]} 23. h3 {[%emt 0:04:47]} g4 {[%emt 0:03:07]} 24. hxg4 {[%emt 0:02:26]} Qxg4
{[%emt 0:00:03]} 25. Bxd4 {[%emt 0:00:26]} Bxd4 {[%emt 0:00:52]} 26. Nf3 {
[%emt 0:00:33]} Re3 {[%emt 0:00:48]} 0-1